[Event "Titled Tuesday Blitz March 07 Early 2023"]
[White "Gheorghiu, Calin"]
[Black "Rosh Jain"]
[WhiteFideId "1200305"]
[BlackFideId "25789465"]
[WhiteElo "2223"]
[BlackElo "2233"]
[Result "1-0"]
[Round "10"]
[TimeControl "180+2"]
[Date "2023.03.07"]
[WhiteClock "0:00:38"]
[BlackClock "0:00:08"]

1. e4 {[%clk 0:03:00]}  c5 {[%clk 0:02:59]} 2. Nf3 {[%clk 0:03:00]}  d6 {[%clk 0:02:59]} 3. Bb5+ {[%clk 0:02:59]}  Nd7 {[%clk 0:02:58]} 4. O-O {[%clk 0:02:58]}  Nf6 {[%clk 0:02:56]} 5. Re1 {[%clk 0:02:57]}  a6 {[%clk 0:02:54]} 6. Bf1 {[%clk 0:02:51]}  g6 {[%clk 0:02:53]} 7. a4 {[%clk 0:02:50]}  Bg7 {[%clk 0:02:53]} 8. c3 {[%clk 0:02:49]}  O-O {[%clk 0:02:53]} 9. d4 {[%clk 0:02:48]}  cxd4 {[%clk 0:02:52]} 10. cxd4 {[%clk 0:02:48]}  e5 {[%clk 0:02:53]} 11. d5 {[%clk 0:02:39]}  Nc5 {[%clk 0:02:48]} 12. Nc3 {[%clk 0:02:39]}  a5 {[%clk 0:02:47]} 13. Nd2 {[%clk 0:02:22]}  Bg4 {[%clk 0:02:42]} 14. f3 {[%clk 0:02:20]}  Bd7 {[%clk 0:02:42]} 15. Nc4 {[%clk 0:02:20]}  Nh5 {[%clk 0:02:35]} 16. Nxd6 {[%clk 0:02:15]}  Bxa4 {[%clk 0:02:28]} 17. Nxa4 {[%clk 0:02:10]}  Qxd6 {[%clk 0:02:27]} 18. Nxc5 {[%clk 0:02:09]}  Qxc5+ {[%clk 0:02:27]} 19. Be3 {[%clk 0:02:10]}  Qd6 {[%clk 0:02:28]} 20. Qb3 {[%clk 0:02:08]}  f5 {[%clk 0:02:25]} 21. Rac1 {[%clk 0:02:05]}  Qd7 {[%clk 0:02:10]} 22. Rc7 {[%clk 0:01:58]}  Qxc7 {[%clk 0:02:08]} 23. d6+ {[%clk 0:01:58]}  Qf7 {[%clk 0:02:06]} 24. Bc4 {[%clk 0:01:58]}  fxe4 {[%clk 0:02:01]} 25. fxe4 {[%clk 0:01:57]}  Rad8 {[%clk 0:01:55]} 26. Bc5 {[%clk 0:01:52]}  Nf4 {[%clk 0:01:44]} 27. d7 {[%clk 0:01:49]}  a4 {[%clk 0:01:13]} 28. Qa2 {[%clk 0:01:46]}  Rxd7 {[%clk 0:01:11]} 29. Bxf8 {[%clk 0:01:40]}  Ne2+ {[%clk 0:01:11]} 30. Kh1 {[%clk 0:01:36]}  Kxf8 {[%clk 0:01:01]} 31. Bxf7 {[%clk 0:01:35]}  Rxf7 {[%clk 0:01:02]} 32. Qe6 {[%clk 0:01:12]}  Nd4 {[%clk 0:00:49]} 33. Qc8+ {[%clk 0:01:11]}  Ke7 {[%clk 0:00:49]} 34. Qxb7+ {[%clk 0:01:10]}  Ke8 {[%clk 0:00:46]} 35. Qb8+ {[%clk 0:01:04]}  Ke7 {[%clk 0:00:46]} 36. Rc1 {[%clk 0:01:04]}  Ne6 {[%clk 0:00:22]} 37. Qb4+ {[%clk 0:01:01]}  Kf6 {[%clk 0:00:20]} 38. Rf1+ {[%clk 0:00:57]}  Nf4 {[%clk 0:00:21]} 39. g3 {[%clk 0:00:54]}  Kg5 {[%clk 0:00:21]} 40. Qxa4 {[%clk 0:00:50]}  Bf8 {[%clk 0:00:13]} 41. gxf4+ {[%clk 0:00:49]}  exf4 {[%clk 0:00:13]} 42. Qe8 {[%clk 0:00:48]}  Rf6 {[%clk 0:00:13]} 43. e5 {[%clk 0:00:47]}  Rf5 {[%clk 0:00:12]} 44. e6 {[%clk 0:00:47]}  f3 {[%clk 0:00:12]} 45. e7 {[%clk 0:00:47]}  Bxe7 {[%clk 0:00:10]} 46. Qxe7+ {[%clk 0:00:47]}  Kg4 {[%clk 0:00:11]} 47. b4 {[%clk 0:00:43]}  f2 {[%clk 0:00:10]} 48. Qe2+ {[%clk 0:00:42]}  Kg5 {[%clk 0:00:10]} 49. Rxf2 {[%clk 0:00:43]}  Rd5 {[%clk 0:00:08]} 50. Qe3+ {[%clk 0:00:39]}  Kg4 {[%clk 0:00:08]} 51. Qe4+ {[%clk 0:00:39]}  Kh3 {[%clk 0:00:08]} 52. Rf3# {[%clk 0:00:38]} 1-0


[Site "https://www.chess.com"]

[Event "Titled Tuesday Blitz March 07 Early 2023"]
[White "Lauridsen, Jesper Morch"]
[Black "Djokovic, Nebojsa"]
[WhiteFideId "1401890"]
[BlackFideId "938300"]
[WhiteElo "2292"]
[BlackElo "2548"]
[Result "0-1"]
[Round "10"]
[TimeControl "180+2"]
[Date "2023.03.07"]
[WhiteClock "0:00:19"]
[BlackClock "0:02:27"]

1. e4 {[%clk 0:03:00]}  c5 {[%clk 0:02:53]} 2. Nf3 {[%clk 0:03:00]}  d6 {[%clk 0:02:53]} 3. b3 {[%clk 0:03:00]}  Nf6 {[%clk 0:02:52]} 4. Nc3 {[%clk 0:02:59]}  g6 {[%clk 0:02:53]} 5. Bb2 {[%clk 0:02:58]}  Bg7 {[%clk 0:02:53]} 6. e5 {[%clk 0:02:57]}  dxe5 {[%clk 0:02:53]} 7. Bb5+ {[%clk 0:02:55]}  Nbd7 {[%clk 0:02:53]} 8. Nxe5 {[%clk 0:02:54]}  O-O {[%clk 0:02:53]} 9. Qe2 {[%clk 0:02:48]}  a6 {[%clk 0:02:51]} 10. Bc4 {[%clk 0:02:41]}  b5 {[%clk 0:02:50]} 11. Nc6 {[%clk 0:02:38]}  Qc7 {[%clk 0:02:50]} 12. Nxe7+ {[%clk 0:02:34]}  Kh8 {[%clk 0:02:50]} 13. Ncd5 {[%clk 0:02:22]}  Qd6 {[%clk 0:02:45]} 14. Nxf6 {[%clk 0:01:35]}  Bxf6 {[%clk 0:02:45]} 15. Nxc8 {[%clk 0:01:22]}  Raxc8 {[%clk 0:02:43]} 16. Bxf6+ {[%clk 0:01:02]}  Qxf6 {[%clk 0:02:44]} 17. O-O {[%clk 0:01:00]}  bxc4 {[%clk 0:02:44]} 18. Qxc4 {[%clk 0:01:01]}  Ne5 {[%clk 0:02:45]} 19. Qc3 {[%clk 0:00:58]}  Kg7 {[%clk 0:02:44]} 20. Rfe1 {[%clk 0:00:56]}  Ng4 {[%clk 0:02:43]} 21. Re7 {[%clk 0:00:44]}  Qxc3 {[%clk 0:02:39]} 22. dxc3 {[%clk 0:00:44]}  Rfd8 {[%clk 0:02:39]} 23. Rae1 {[%clk 0:00:38]}  Rd2 {[%clk 0:02:38]} 24. f3 {[%clk 0:00:33]}  Nf6 {[%clk 0:02:35]} 25. Ra7 {[%clk 0:00:32]}  Nd5 {[%clk 0:02:30]} 26. Rxa6 {[%clk 0:00:27]}  Rxc2 {[%clk 0:02:28]} 27. c4 {[%clk 0:00:27]}  Nf4 {[%clk 0:02:28]} 28. g3 {[%clk 0:00:20]}  Nh3+ {[%clk 0:02:27]} 29. Kh1 {[%clk 0:00:19]}  Rd8 {[%clk 0:02:27]} 0-1


[Site "https://www.chess.com"]

[Event "Titled Tuesday Blitz March 07 Early 2023"]
[White "Balla, Tamas-Kristof"]
[Black "Abrosimov, Vladimir"]
[WhiteFideId "1208497"]
[BlackFideId "4166892"]
[WhiteElo "2334"]
[BlackElo "2336"]
[Result "1-0"]
[Round "10"]
[TimeControl "180+2"]
[Date "2023.03.07"]
[WhiteClock "0:01:16"]
[BlackClock "0:00:48"]

1. e4 {[%clk 0:03:00]}  c5 {[%clk 0:02:59]} 2. Nf3 {[%clk 0:02:57]}  d6 {[%clk 0:03:00]} 3. d4 {[%clk 0:02:55]}  cxd4 {[%clk 0:02:56]} 4. Qxd4 {[%clk 0:02:54]}  Nc6 {[%clk 0:02:51]} 5. Qe3 {[%clk 0:02:55]}  Nf6 {[%clk 0:02:46]} 6. c4 {[%clk 0:02:54]}  e6 {[%clk 0:02:43]} 7. Nc3 {[%clk 0:02:54]}  Be7 {[%clk 0:02:43]} 8. Be2 {[%clk 0:02:55]}  O-O {[%clk 0:02:43]} 9. O-O {[%clk 0:02:55]}  a6 {[%clk 0:02:41]} 10. b3 {[%clk 0:02:54]}  Qc7 {[%clk 0:02:36]} 11. Bb2 {[%clk 0:02:53]}  Rd8 {[%clk 0:02:34]} 12. Rac1 {[%clk 0:02:53]}  d5 {[%clk 0:02:21]} 13. cxd5 {[%clk 0:02:48]}  exd5 {[%clk 0:02:22]} 14. exd5 {[%clk 0:02:42]}  Nxd5 {[%clk 0:02:21]} 15. Nxd5 {[%clk 0:02:42]}  Rxd5 {[%clk 0:02:19]} 16. Bc4 {[%clk 0:01:56]}  Rd8 {[%clk 0:02:07]} 17. Ng5 {[%clk 0:01:47]}  Bxg5 {[%clk 0:01:36]} 18. Qxg5 {[%clk 0:01:46]}  Nd4 {[%clk 0:01:33]} 19. Bxf7+ {[%clk 0:01:38]}  Qxf7 {[%clk 0:01:33]} 20. Qxd8+ {[%clk 0:01:38]}  Qf8 {[%clk 0:01:33]} 21. Qxd4 {[%clk 0:01:32]}  Be6 {[%clk 0:01:29]} 22. Rc7 {[%clk 0:01:31]}  Bf7 {[%clk 0:01:28]} 23. Rfc1 {[%clk 0:01:25]}  Rd8 {[%clk 0:01:23]} 24. Qg4 {[%clk 0:01:24]}  g6 {[%clk 0:01:10]} 25. Rc8 {[%clk 0:01:21]}  Re8 {[%clk 0:01:03]} 26. Rxe8 {[%clk 0:01:19]}  Bxe8 {[%clk 0:01:04]} 27. Qd4 {[%clk 0:01:18]}  Qf5 {[%clk 0:00:48]} 28. Qg7# {[%clk 0:01:16]} 1-0


[Site "https://www.chess.com"]

[Event "Titled Tuesday Blitz March 07 Early 2023"]
[White "Vargas Rodriguez, Wilver"]
[Black "Smith, Garrett L"]
[WhiteFideId "3509672"]
[BlackFideId "2024829"]
[WhiteElo "2238"]
[BlackElo "2267"]
[Result "0-1"]
[Round "10"]
[TimeControl "180+2"]
[Date "2023.03.07"]
[WhiteClock "0:00:02"]
[BlackClock "0:00:27"]

1. e4 {[%clk 0:02:57]}  c5 {[%clk 0:02:58]} 2. Nf3 {[%clk 0:02:56]}  Nc6 {[%clk 0:02:59]} 3. d3 {[%clk 0:02:50]}  e5 {[%clk 0:02:55]} 4. g3 {[%clk 0:02:48]}  Nf6 {[%clk 0:02:55]} 5. Bg2 {[%clk 0:02:48]}  d6 {[%clk 0:02:55]} 6. O-O {[%clk 0:02:48]}  Be7 {[%clk 0:02:54]} 7. h3 {[%clk 0:02:47]}  h6 {[%clk 0:02:51]} 8. Nbd2 {[%clk 0:02:44]}  O-O {[%clk 0:02:50]} 9. Nh2 {[%clk 0:02:44]}  d5 {[%clk 0:02:46]} 10. exd5 {[%clk 0:02:37]}  Nxd5 {[%clk 0:02:46]} 11. Re1 {[%clk 0:02:37]}  Re8 {[%clk 0:02:40]} 12. Ng4 {[%clk 0:02:32]}  Bf8 {[%clk 0:02:35]} 13. Nc4 {[%clk 0:02:26]}  f6 {[%clk 0:02:18]} 14. Qf3 {[%clk 0:02:18]}  Be6 {[%clk 0:02:10]} 15. Be3 {[%clk 0:02:02]}  Qd7 {[%clk 0:02:01]} 16. Qe2 {[%clk 0:01:31]}  Nd4 {[%clk 0:01:45]} 17. Qd2 {[%clk 0:01:22]}  Rad8 {[%clk 0:01:33]} 18. c3 {[%clk 0:00:56]}  Nc6 {[%clk 0:01:33]} 19. Rad1 {[%clk 0:00:51]}  Bxg4 {[%clk 0:01:29]} 20. hxg4 {[%clk 0:00:49]}  Qxg4 {[%clk 0:01:28]} 21. Kh2 {[%clk 0:00:25]}  f5 {[%clk 0:01:17]} 22. f3 {[%clk 0:00:22]}  Qh5+ {[%clk 0:01:16]} 23. Bh3 {[%clk 0:00:22]}  f4 {[%clk 0:01:14]} 24. gxf4 {[%clk 0:00:20]}  exf4 {[%clk 0:00:50]} 25. Bf2 {[%clk 0:00:19]}  Qxf3 {[%clk 0:00:46]} 26. Rg1 {[%clk 0:00:18]}  Re2 {[%clk 0:00:37]} 27. Rg2 {[%clk 0:00:01]}  Rxd2 {[%clk 0:00:33]} 28. Rxd2 {[%clk 0:00:02]}  Qh5 {[%clk 0:00:27]} 0-1


[Site "https://www.chess.com"]

[Event "Titled Tuesday Blitz March 07 Early 2023"]
[White "Torres Dominguez, David"]
[Black "Rios Escobar, Adan"]
[WhiteFideId "2220857"]
[BlackFideId "3403645"]
[WhiteElo "1999"]
[BlackElo "2367"]
[Result "0-1"]
[Round "10"]
[TimeControl "180+2"]
[Date "2023.03.07"]
[WhiteClock "0:00:26"]
[BlackClock "0:01:46"]

1. e4 {[%clk 0:00:42]}  c5 {[%clk 0:02:59]} 2. Nc3 {[%clk 0:00:39]}  d6 {[%clk 0:02:59]} 3. Bb5+ {[%clk 0:00:39]}  Bd7 {[%clk 0:02:43]} 4. Bxd7+ {[%clk 0:00:39]}  Qxd7 {[%clk 0:02:44]} 5. d3 {[%clk 0:00:40]}  g6 {[%clk 0:02:44]} 6. f4 {[%clk 0:00:39]}  Bg7 {[%clk 0:02:44]} 7. Nf3 {[%clk 0:00:39]}  Nc6 {[%clk 0:02:45]} 8. O-O {[%clk 0:00:40]}  e6 {[%clk 0:02:45]} 9. a4 {[%clk 0:00:39]}  Nge7 {[%clk 0:02:45]} 10. Qe1 {[%clk 0:00:39]}  h6 {[%clk 0:02:38]} 11. f5 {[%clk 0:00:39]}  gxf5 {[%clk 0:02:37]} 12. Bd2 {[%clk 0:00:39]}  fxe4 {[%clk 0:02:36]} 13. dxe4 {[%clk 0:00:40]}  Ng6 {[%clk 0:02:34]} 14. Kh1 {[%clk 0:00:38]}  O-O-O {[%clk 0:02:31]} 15. a5 {[%clk 0:00:37]}  Rhg8 {[%clk 0:02:27]} 16. a6 {[%clk 0:00:36]}  b6 {[%clk 0:02:24]} 17. Nb5 {[%clk 0:00:37]}  Kb8 {[%clk 0:02:23]} 18. Bc3 {[%clk 0:00:37]}  Nce5 {[%clk 0:02:22]} 19. Nxe5 {[%clk 0:00:32]}  Bxe5 {[%clk 0:02:21]} 20. Qe2 {[%clk 0:00:31]}  Nf4 {[%clk 0:02:16]} 21. Rxf4 {[%clk 0:00:30]}  Bxf4 {[%clk 0:02:15]} 22. Rf1 {[%clk 0:00:30]}  Be5 {[%clk 0:02:10]} 23. Bxe5 {[%clk 0:00:30]}  dxe5 {[%clk 0:02:10]} 24. c4 {[%clk 0:00:30]}  Rg7 {[%clk 0:02:08]} 25. Qf2 {[%clk 0:00:28]}  Qd2 {[%clk 0:02:03]} 26. h3 {[%clk 0:00:27]}  Qxf2 {[%clk 0:02:00]} 27. Rxf2 {[%clk 0:00:28]}  Rd1+ {[%clk 0:01:58]} 28. Kh2 {[%clk 0:00:28]}  h5 {[%clk 0:01:55]} 29. h4 {[%clk 0:00:27]}  Rd7 {[%clk 0:01:48]} 30. b3 {[%clk 0:00:26]}  Rg4 {[%clk 0:01:47]} 31. g3 {[%clk 0:00:25]}  Rxe4 {[%clk 0:01:48]} 32. Rf6 {[%clk 0:00:26]}  Re2+ {[%clk 0:01:46]} 33. Kh3 {[%clk 0:00:26]}  Rdd2 {[%clk 0:01:46]} 34. g4 {[%clk 0:00:26]}  Rd3+ {[%clk 0:01:46]} 0-1


[Site "https://www.chess.com"]

[Event "Titled Tuesday Blitz March 07 Early 2023"]
[White "Valgmae, Toomas"]
[Black "Tagliati, Eleonore"]
[WhiteFideId "4502523"]
[BlackFideId "45172234"]
[WhiteElo "2170"]
[BlackElo "2229"]
[Result "1-0"]
[Round "10"]
[TimeControl "180+2"]
[Date "2023.03.07"]
[WhiteClock "0:01:37"]
[BlackClock "0:00:47"]

1. d4 {[%clk 0:03:00]}  d5 {[%clk 0:02:57]} 2. c4 {[%clk 0:03:00]}  c6 {[%clk 0:02:58]} 3. Nf3 {[%clk 0:03:00]}  Nf6 {[%clk 0:02:56]} 4. Nc3 {[%clk 0:03:01]}  e6 {[%clk 0:02:56]} 5. Bg5 {[%clk 0:03:00]}  dxc4 {[%clk 0:02:55]} 6. e4 {[%clk 0:03:00]}  b5 {[%clk 0:02:55]} 7. Be2 {[%clk 0:03:00]}  h6 {[%clk 0:02:54]} 8. Bh4 {[%clk 0:03:00]}  Nbd7 {[%clk 0:02:49]} 9. O-O {[%clk 0:02:59]}  Be7 {[%clk 0:02:45]} 10. e5 {[%clk 0:02:58]}  Nd5 {[%clk 0:02:44]} 11. Bxe7 {[%clk 0:02:59]}  Qxe7 {[%clk 0:02:44]} 12. Ne4 {[%clk 0:02:58]}  O-O {[%clk 0:02:41]} 13. a4 {[%clk 0:02:58]}  Bb7 {[%clk 0:02:27]} 14. Nd6 {[%clk 0:02:54]}  N7b6 {[%clk 0:02:20]} 15. axb5 {[%clk 0:02:52]}  cxb5 {[%clk 0:02:21]} 16. Nxb5 {[%clk 0:02:51]}  Bc6 {[%clk 0:02:16]} 17. Nd6 {[%clk 0:02:51]}  Rfd8 {[%clk 0:02:10]} 18. Qd2 {[%clk 0:02:39]}  Nc8 {[%clk 0:02:00]} 19. Nxc4 {[%clk 0:02:36]}  Bb5 {[%clk 0:01:56]} 20. b3 {[%clk 0:02:36]}  Nc7 {[%clk 0:01:48]} 21. Rfd1 {[%clk 0:02:28]}  a6 {[%clk 0:01:44]} 22. Bd3 {[%clk 0:02:06]}  Bc6 {[%clk 0:01:40]} 23. Qe2 {[%clk 0:02:02]}  Nd5 {[%clk 0:01:29]} 24. g3 {[%clk 0:01:58]}  Nc3 {[%clk 0:01:28]} 25. Qe3 {[%clk 0:01:57]}  Nxd1 {[%clk 0:01:28]} 26. Rxd1 {[%clk 0:01:58]}  Bd5 {[%clk 0:01:26]} 27. Nfd2 {[%clk 0:01:53]}  Rb8 {[%clk 0:01:21]} 28. Bc2 {[%clk 0:01:50]}  Qb4 {[%clk 0:01:17]} 29. Qd3 {[%clk 0:01:48]}  g6 {[%clk 0:01:10]} 30. h4 {[%clk 0:01:47]}  h5 {[%clk 0:01:05]} 31. Ne4 {[%clk 0:01:46]}  Bxe4 {[%clk 0:01:02]} 32. Qxe4 {[%clk 0:01:47]}  Nb6 {[%clk 0:00:55]} 33. Nd6 {[%clk 0:01:45]}  Nd5 {[%clk 0:00:48]} 34. Nxf7 {[%clk 0:01:38]}  Kxf7 {[%clk 0:00:48]} 35. Qxg6+ {[%clk 0:01:38]}  Ke7 {[%clk 0:00:48]} 36. Qg7+ {[%clk 0:01:37]}  Ke8 {[%clk 0:00:47]} 37. Bg6# {[%clk 0:01:37]} 1-0


[Site "https://www.chess.com"]

[Event "Titled Tuesday Blitz March 07 Early 2023"]
[White "Hrabinska, Myroslava"]
[Black "lisjakzlatko1"]
[WhiteFideId "14109190"]
[WhiteElo "2039"]
[BlackElo "2187"]
[Result "0-1"]
[Round "10"]
[TimeControl "180+2"]
[Date "2023.03.07"]
[WhiteClock "0:00:57"]
[BlackClock "0:00:48"]

1. e4 {[%clk 0:03:00]}  d6 {[%clk 0:02:59]} 2. d4 {[%clk 0:03:00]}  Nf6 {[%clk 0:02:59]} 3. Nc3 {[%clk 0:02:59]}  c6 {[%clk 0:03:00]} 4. Bg5 {[%clk 0:02:57]}  Nbd7 {[%clk 0:02:53]} 5. Qd2 {[%clk 0:02:55]}  Qa5 {[%clk 0:02:51]} 6. f4 {[%clk 0:02:52]}  e5 {[%clk 0:02:47]} 7. Nf3 {[%clk 0:02:39]}  Be7 {[%clk 0:02:25]} 8. fxe5 {[%clk 0:02:17]}  dxe5 {[%clk 0:02:24]} 9. d5 {[%clk 0:02:17]}  O-O {[%clk 0:02:01]} 10. d6 {[%clk 0:02:13]}  Bd8 {[%clk 0:02:02]} 11. O-O-O {[%clk 0:02:06]}  b5 {[%clk 0:02:01]} 12. Bxf6 {[%clk 0:01:31]}  Bxf6 {[%clk 0:01:46]} 13. Kb1 {[%clk 0:01:29]}  b4 {[%clk 0:01:43]} 14. Ne2 {[%clk 0:01:26]}  Nc5 {[%clk 0:01:42]} 15. Ng3 {[%clk 0:01:26]}  Be6 {[%clk 0:01:43]} 16. a3 {[%clk 0:01:25]}  Rab8 {[%clk 0:01:29]} 17. Nf5 {[%clk 0:01:24]}  Nxe4 {[%clk 0:01:24]} 18. Qe1 {[%clk 0:01:14]}  Nc3+ {[%clk 0:01:17]} 19. Kc1 {[%clk 0:01:05]}  Nxd1 {[%clk 0:01:08]} 20. Ne7+ {[%clk 0:01:05]}  Kh8 {[%clk 0:00:53]} 21. Kxd1 {[%clk 0:01:04]}  Rfd8 {[%clk 0:00:49]} 22. Kc1 {[%clk 0:00:57]}  Rxd6 {[%clk 0:00:48]} 0-1


[Site "https://www.chess.com"]

[Event "Titled Tuesday Blitz March 07 Early 2023"]
[White "Melikhov, Evgeny V."]
[Black "Kho, Darrell"]
[WhiteFideId "4122046"]
[BlackFideId "1019317"]
[WhiteElo "2158"]
[BlackElo "2178"]
[Result "1/2-1/2"]
[Round "10"]
[TimeControl "180+2"]
[Date "2023.03.07"]
[WhiteClock "0:00:02"]
[BlackClock "0:00:03"]

1. d4 {[%clk 0:03:00]}  d5 {[%clk 0:02:58]} 2. c4 {[%clk 0:03:01]}  dxc4 {[%clk 0:02:59]} 3. Nf3 {[%clk 0:03:00]}  Nf6 {[%clk 0:02:59]} 4. e3 {[%clk 0:03:00]}  e6 {[%clk 0:03:00]} 5. Bxc4 {[%clk 0:03:01]}  a6 {[%clk 0:03:00]} 6. a4 {[%clk 0:03:00]}  c5 {[%clk 0:02:58]} 7. O-O {[%clk 0:02:59]}  Nc6 {[%clk 0:02:56]} 8. Qe2 {[%clk 0:02:59]}  cxd4 {[%clk 0:02:51]} 9. Rd1 {[%clk 0:02:58]}  Be7 {[%clk 0:02:30]} 10. exd4 {[%clk 0:02:58]}  O-O {[%clk 0:02:30]} 11. Nc3 {[%clk 0:02:58]}  Nb4 {[%clk 0:02:20]} 12. Bg5 {[%clk 0:02:55]}  Bd7 {[%clk 0:02:15]} 13. d5 {[%clk 0:02:46]}  Nbxd5 {[%clk 0:01:23]} 14. Nxd5 {[%clk 0:02:41]}  exd5 {[%clk 0:01:24]} 15. Bxd5 {[%clk 0:02:33]}  Nxd5 {[%clk 0:01:20]} 16. Rxd5 {[%clk 0:02:30]}  Bxg5 {[%clk 0:01:13]} 17. Rxg5 {[%clk 0:02:29]}  Bc6 {[%clk 0:01:07]} 18. Qe5 {[%clk 0:01:33]}  f6 {[%clk 0:00:34]} 19. Qe6+ {[%clk 0:01:32]}  Kh8 {[%clk 0:00:29]} 20. Rg3 {[%clk 0:01:30]}  Qd7 {[%clk 0:00:17]} 21. Qxd7 {[%clk 0:01:13]}  Bxd7 {[%clk 0:00:17]} 22. a5 {[%clk 0:01:14]}  Rac8 {[%clk 0:00:16]} 23. Nd4 {[%clk 0:01:11]}  Rc4 {[%clk 0:00:11]} 24. Rd1 {[%clk 0:01:08]}  Rb4 {[%clk 0:00:03]} 25. b3 {[%clk 0:01:05]}  Rc8 {[%clk 0:00:02]} 26. h4 {[%clk 0:00:53]}  h5 {[%clk 0:00:01]} 27. Re3 {[%clk 0:00:50]}  Kh7 {[%clk 0:00:01]} 28. Re7 {[%clk 0:00:49]}  Bg4 {[%clk 0:00:02]} 29. f3 {[%clk 0:00:48]}  Rd8 {[%clk 0:00:02]} 30. fxg4 {[%clk 0:00:37]}  Rdxd4 {[%clk 0:00:02]} 31. Rxd4 {[%clk 0:00:37]}  Rxd4 {[%clk 0:00:03]} 32. gxh5 {[%clk 0:00:32]}  Rb4 {[%clk 0:00:03]} 33. Re3 {[%clk 0:00:21]}  Rxh4 {[%clk 0:00:03]} 34. Kf2 {[%clk 0:00:19]}  Rb4 {[%clk 0:00:04]} 35. Kf3 {[%clk 0:00:18]}  Rb5 {[%clk 0:00:04]} 36. g4 {[%clk 0:00:16]}  Rxa5 {[%clk 0:00:04]} 37. Rc3 {[%clk 0:00:13]}  Rb5 {[%clk 0:00:05]} 38. Kf4 {[%clk 0:00:12]}  Rb4+ {[%clk 0:00:05]} 39. Kf5 {[%clk 0:00:12]}  Rb5+ {[%clk 0:00:05]} 40. Kf4 {[%clk 0:00:12]}  a5 {[%clk 0:00:05]} 41. Rd3 {[%clk 0:00:09]}  Kh6 {[%clk 0:00:05]} 42. Rc3 {[%clk 0:00:08]}  g6 {[%clk 0:00:05]} 43. hxg6 {[%clk 0:00:07]}  Kxg6 {[%clk 0:00:06]} 44. Rd3 {[%clk 0:00:07]}  Rb4+ {[%clk 0:00:05]} 45. Kf3 {[%clk 0:00:07]}  Kg5 {[%clk 0:00:05]} 46. Rd5+ {[%clk 0:00:07]}  Kg6 {[%clk 0:00:06]} 47. Rd3 {[%clk 0:00:07]}  b5 {[%clk 0:00:05]} 48. Rc3 {[%clk 0:00:06]}  a4 {[%clk 0:00:05]} 49. bxa4 {[%clk 0:00:06]}  bxa4 {[%clk 0:00:06]} 50. Rc5 {[%clk 0:00:05]}  a3 {[%clk 0:00:04]} 51. Ra5 {[%clk 0:00:05]}  Rb3+ {[%clk 0:00:04]} 52. Kf4 {[%clk 0:00:06]}  Rc3 {[%clk 0:00:03]} 53. Ra6 {[%clk 0:00:05]}  Rb3 {[%clk 0:00:03]} 54. Ra5 {[%clk 0:00:02]}  Rb4+ {[%clk 0:00:03]} 55. Kf3 {[%clk 0:00:02]}  Rb3+ {[%clk 0:00:03]} 56. Kf4 {[%clk 0:00:02]} 1/2-1/2


[Site "https://www.chess.com"]

[Event "Titled Tuesday Blitz March 07 Early 2023"]
[White "Mikhaylova, Irina"]
[Black "Kriti Mayur Patel"]
[WhiteFideId "4109040"]
[BlackFideId "35061780"]
[WhiteElo "1966"]
[BlackElo "1306"]
[Result "1-0"]
[Round "10"]
[TimeControl "180+2"]
[Date "2023.03.07"]
[WhiteClock "0:00:19"]
[BlackClock "0:00:51"]

1. d4 {[%clk 0:03:00]}  d5 {[%clk 0:02:59]} 2. Nf3 {[%clk 0:03:01]}  Nf6 {[%clk 0:03:00]} 3. c4 {[%clk 0:03:01]}  e6 {[%clk 0:03:00]} 4. Qc2 {[%clk 0:03:01]}  Be7 {[%clk 0:02:59]} 5. Bg5 {[%clk 0:03:01]}  O-O {[%clk 0:02:57]} 6. e3 {[%clk 0:03:01]}  h6 {[%clk 0:02:57]} 7. Bh4 {[%clk 0:03:01]}  Ne4 {[%clk 0:02:57]} 8. Bxe7 {[%clk 0:03:00]}  Qxe7 {[%clk 0:02:57]} 9. Bd3 {[%clk 0:03:01]}  f5 {[%clk 0:02:55]} 10. Nc3 {[%clk 0:03:00]}  Nc6 {[%clk 0:02:49]} 11. a3 {[%clk 0:02:33]}  Nxc3 {[%clk 0:02:39]} 12. Qxc3 {[%clk 0:02:33]}  Kh8 {[%clk 0:02:30]} 13. O-O {[%clk 0:02:25]}  Bd7 {[%clk 0:02:22]} 14. b4 {[%clk 0:02:23]}  a6 {[%clk 0:02:20]} 15. b5 {[%clk 0:02:14]}  axb5 {[%clk 0:02:15]} 16. cxb5 {[%clk 0:02:14]}  Na5 {[%clk 0:02:13]} 17. Ne5 {[%clk 0:02:05]}  Be8 {[%clk 0:02:01]} 18. Qb4 {[%clk 0:01:10]}  Qg5 {[%clk 0:01:43]} 19. Qxf8+ {[%clk 0:01:04]}  Kh7 {[%clk 0:01:39]} 20. f4 {[%clk 0:00:51]}  Qh5 {[%clk 0:01:29]} 21. Rac1 {[%clk 0:00:30]}  Nb3 {[%clk 0:01:19]} 22. Rxc7 {[%clk 0:00:26]}  Bf7 {[%clk 0:01:06]} 23. Qxf7 {[%clk 0:00:25]}  Qxf7 {[%clk 0:01:04]} 24. Nxf7 {[%clk 0:00:25]}  Rxa3 {[%clk 0:01:03]} 25. Rc3 {[%clk 0:00:25]}  Nd2 {[%clk 0:00:53]} 26. Rxa3 {[%clk 0:00:25]}  Nxf1 {[%clk 0:00:54]} 27. Kxf1 {[%clk 0:00:25]}  Kg6 {[%clk 0:00:54]} 28. Ra7 {[%clk 0:00:25]}  Kxf7 {[%clk 0:00:53]} 29. Rxb7+ {[%clk 0:00:25]}  Kg6 {[%clk 0:00:54]} 30. b6 {[%clk 0:00:25]}  e5 {[%clk 0:00:55]} 31. fxe5 {[%clk 0:00:25]}  Kh5 {[%clk 0:00:54]} 32. Rxg7 {[%clk 0:00:23]}  f4 {[%clk 0:00:54]} 33. Be2+ {[%clk 0:00:23]}  Kh4 {[%clk 0:00:54]} 34. g3+ {[%clk 0:00:23]}  fxg3 {[%clk 0:00:50]} 35. hxg3+ {[%clk 0:00:23]}  Kh3 {[%clk 0:00:51]} 36. b7 {[%clk 0:00:23]}  h5 {[%clk 0:00:51]} 37. b8=Q {[%clk 0:00:23]}  h4 {[%clk 0:00:51]} 38. Qc8+ {[%clk 0:00:23]}  Kh2 {[%clk 0:00:52]} 39. gxh4 {[%clk 0:00:20]}  Kh1 {[%clk 0:00:51]} 40. Rg1+ {[%clk 0:00:20]}  Kh2 {[%clk 0:00:51]} 41. Rg2+ {[%clk 0:00:19]}  Kh1 {[%clk 0:00:51]} 42. Qh3# {[%clk 0:00:19]} 1-0


[Site "https://www.chess.com"]